bitfinex/quotes_BTCUSD_20241202
["timestamp","ask_amount","ask_price","bid_price","bid_amount"]
[1733099308645,0.0017318,97360.0,97359.0,0.10784521]
[1733099311091,0.0017318,97360.0,97359.0,0.10584521]
[1733099311295,0.0017318,97360.0,97359.0,0.10284521]
[1733099311507,0.0017318,97360.0,97359.0,0.10484521]
[1733099311720,0.0017318,97360.0,97359.0,0.10884521]
[1733099313207,0.0017318,97360.0,97359.0,0.10484521]
[1733099313414,0.0017318,97360.0,97359.0,0.18794521]
[1733099313625,0.0017318,97360.0,97359.0,0.22295795]
[1733099313840,0.0017318,97360.0,97359.0,0.21995795]
[1733099314063,0.0017318,97360.0,97359.0,0.22095795]
[1733099314309,0.0017318,97360.0,97359.0,0.26725795]
[1733099314784,0.0017318,97360.0,97359.0,0.27325795]
[1733099314993,0.0017318,97360.0,97359.0,0.26725795]
[1733099315199,0.0017318,97360.0,97359.0,0.26425795]
[1733099315403,0.0017318,97360.0,97359.0,0.27225795]
[1733099315854,0.0017318,97360.0,97359.0,0.29925795]
[1733099316504,0.0017318,97360.0,97359.0,0.29125795]
[1733099316970,0.0017318,97360.0,97359.0,0.29925795]
[1733099317196,0.0017318,97360.0,97359.0,0.28725795]
[1733099317407,0.0017318,97360.0,97359.0,0.29925795]
[1733099317861,0.0017318,97360.0,97359.0,0.28725795]
[1733099318059,0.0017318,97360.0,97359.0,0.29525795]
[1733099318290,0.0017318,97360.0,97359.0,0.29125795]
[1733099318770,0.0017318,97360.0,97359.0,0.29525795]
[1733099319004,0.0017318,97360.0,97359.0,0.29925795]
[1733099319910,0.0017318,97360.0,97359.0,0.29125795]
[1733099320357,0.0017318,97360.0,97359.0,0.29525795]
[1733099320602,0.0017318,97360.0,97359.0,0.29125795]
[1733099321036,0.0017318,97360.0,97359.0,0.29423211]
[1733099321305,0.0017318,97360.0,97359.0,0.29023211]
[1733099321526,0.0017318,97360.0,97359.0,0.28823211]
[1733099321729,0.0017318,97360.0,97359.0,0.29723211]
[1733099321958,0.0017318,97360.0,97359.0,0.29123211]
[1733099322387,0.0017318,97360.0,97359.0,0.29223211]
[1733099322595,0.205399,97372.0,97360.0,0.228423]
[1733099322814,0.205399,97372.0,97362.0,0.13246539]
[1733099323029,0.205399,97372.0,97364.0,0.023]
[1733099323241,0.205399,97372.0,97366.0,0.023]
[1733099323478,0.205399,97372.0,97368.0,0.023]
[1733099323713,0.205399,97372.0,97370.0,0.023]
[1733099323955,0.205399,97372.0,97371.0,0.12584521]
[1733099324173,0.205393,97374.0,97372.0,0.023]
[1733099324398,0.205393,97374.0,97373.0,0.10284521]
[1733099324606,0.02073838,97375.0,97373.0,0.12584521]
[1733099324853,0.0495,97406.0,97374.0,0.228391]
[1733099325082,0.205286,97425.0,97376.0,0.023]
[1733099325083,0.02100761,97387.0,97376.0,0.023]
[1733099325297,0.011731,97409.0,97379.0,0.287283]
[1733099325298,0.2070872,97392.0,97379.0,0.287283]
[1733099325546,0.0017312,97392.0,97380.0,0.15807621]
[1733099325804,0.205364,97388.0,97380.0,0.12606415]
[1733099326009,0.0017312,97392.0,97380.0,0.12606415]
[1733099326236,0.205367,97387.0,97380.0,0.12606415]
[1733099326468,0.205367,97387.0,97382.0,0.023]
[1733099326683,0.02065207,97390.0,97382.0,0.12606414]
[1733099327104,0.205365,97388.0,97382.0,0.12606414]
[1733099327769,0.205365,97388.0,97382.0,0.13206414]
[1733099327979,0.21148097,97383.0,97382.0,0.00621893]
[1733099329104,0.2071058,97383.0,97382.0,0.00621893]
[1733099329596,0.209378,97383.0,97382.0,0.00621893]
[1733099329825,0.21375317,97383.0,97382.0,0.00021893]
[1733099330042,0.209378,97383.0,97382.0,0.00021893]
[1733099330473,0.21375317,97383.0,97382.0,0.10306414]
[1733099330682,0.21148097,97383.0,97382.0,0.10406414]
[1733099330896,0.0017318,97383.0,97382.0,0.18836414]
[1733099331103,0.0017318,97383.0,97382.0,0.21036414]
[1733099331310,0.0017318,97383.0,97382.0,0.21136414]
[1733099331522,0.0017318,97383.0,97382.0,0.21236414]
[1733099331735,0.2071058,97383.0,97382.0,0.21236414]
[1733099333254,0.2071058,97383.0,97382.0,0.21136414]
[1733099333675,0.2071058,97383.0,97382.0,0.21036414]
[1733099333926,0.2071058,97383.0,97382.0,0.21536414]
[1733099334131,0.2071058,97383.0,97382.0,0.21436414]
[1733099334350,0.2071058,97383.0,97382.0,0.21236414]
[1733099334568,0.2071058,97383.0,97382.0,0.21736414]
[1733099336520,0.0017318,97383.0,97382.0,0.26296414]
[1733099336997,0.0017318,97383.0,97382.0,0.29497958]
[1733099338488,0.0017318,97383.0,97382.0,0.26296414]
[1733099338916,0.0017318,97383.0,97382.0,0.29497395]
[1733099339375,0.0017318,97383.0,97382.0,0.26296414]
[1733099339833,0.0017318,97383.0,97382.0,0.29497154]
[1733099342094,0.0017318,97383.0,97382.0,0.29197154]
[1733099342301,0.0017318,97383.0,97382.0,0.29597154]
[1733099342517,0.0017318,97383.0,97382.0,0.29097154]
[1733099342719,0.0017318,97383.0,97382.0,0.29997154]
[1733099342927,0.0017318,97383.0,97382.0,0.28697154]
[1733099343137,0.0017318,97383.0,97382.0,0.29175261]
[1733099343366,0.0017318,97383.0,97382.0,0.30075261]
[1733099343579,0.0017318,97383.0,97382.0,0.29175261]
[1733099343799,0.0017318,97383.0,97382.0,0.28675261]
[1733099344058,0.0017318,97383.0,97382.0,0.30175261]
[1733099344302,0.0017318,97383.0,97382.0,0.29275261]
[1733099345421,0.0017318,97383.0,97382.0,0.60081261]
[1733099345651,0.0008448,97400.0,97391.0,0.23398183]
[1733099345888,0.00190987,97392.0,97391.0,1.25047444]
[1733099346119,0.00190987,97392.0,97391.0,1.26047444]
[1733099346787,0.00169097,97392.0,97391.0,1.26047444]
[1733099347015,0.00169097,97392.0,97391.0,1.26147444]
[1733099347249,0.00169097,97392.0,97391.0,1.26247444]
[1733099350439,0.00169097,97392.0,97391.0,1.26047444]
[1733099351872,0.00169097,97392.0,97391.0,1.2735073]
[1733099352069,0.00169097,97392.0,97391.0,1.2725073]
[1733099352733,0.00169097,97392.0,97391.0,1.2735073]
[1733099353235,0.00169097,97392.0,97391.0,1.2725073]
[1733099353473,0.00169097,97392.0,97391.0,1.2715073]
[1733099353693,0.0008448,97400.0,97391.0,1.2715073]
[1733099353694,0.0008448,97400.0,97399.0,0.24396483]
[1733099353901,0.0008448,97400.0,97399.0,0.50071744]
[1733099354131,0.0008448,97400.0,97399.0,0.80872744]
[1733099355522,0.001731,97409.0,97408.0,0.53394583]
[1733099355758,0.0017308,97416.0,97415.0,0.30973183]
[1733099355982,0.0017308,97416.0,97415.0,0.44447372]
[1733099356478,0.00179034,97416.0,97415.0,0.79853372]
[1733099358015,0.00179034,97416.0,97415.0,0.80753372]
[1733099358321,0.00179034,97416.0,97415.0,0.79853372]
[1733099358750,0.00179034,97416.0,97415.0,0.80553372]
[1733099359163,0.00179034,97416.0,97415.0,0.80053372]
[1733099359403,0.00179034,97416.0,97415.0,0.80153372]
[1733099359673,0.00179034,97416.0,97415.0,0.79953372]
[1733099360325,0.00179034,97416.0,97415.0,0.80053372]
[1733099361222,0.00179034,97416.0,97415.0,0.81150401]
[1733099362120,0.00179034,97416.0,97415.0,0.80950401]
[1733099362576,0.00179034,97416.0,97415.0,0.81150401]
[1733099363241,0.00179034,97416.0,97415.0,0.80950401]
[1733099363477,0.00179034,97416.0,97415.0,0.81050401]
[1733099363687,0.00179034,97416.0,97415.0,0.81150401]
[1733099365622,0.00179034,97416.0,97415.0,0.81050401]
[1733099365831,0.205251,97442.0,97428.0,0.023]
[1733099366044,0.205264,97436.0,97428.0,0.12584521]
[1733099366259,0.205264,97436.0,97428.0,0.43376521]
[1733099367223,0.205264,97436.0,97428.0,0.43576521]
[1733099367437,0.0492,97439.0,97428.0,0.43576521]
[1733099367648,0.205252,97441.0,97428.0,0.43576521]
[1733099368316,0.205252,97441.0,97428.0,0.43476521]
[1733099368519,0.205252,97441.0,97428.0,0.43376521]
[1733099368738,0.205252,97441.0,97428.0,0.43476521]
[1733099368956,0.205252,97441.0,97428.0,0.43576521]
[1733099369165,0.252341,97447.0,97428.0,0.43576521]
[1733099369849,0.252341,97447.0,97428.0,0.51616521]
[1733099370517,0.20525,97442.0,97428.0,0.51616521]
[1733099370737,0.252341,97447.0,97428.0,0.51616521]
[1733099371435,0.205252,97441.0,97428.0,0.51616521]
[1733099372090,0.205263,97436.0,97428.0,0.43576521]
[1733099372319,0.205276,97430.0,97428.0,0.41276521]
[1733099372961,0.04740574,97429.0,97428.0,0.41276521]
[1733099373192,0.0540518,97429.0,97428.0,0.41276521]
[1733099373436,0.0540518,97429.0,97428.0,0.41076521]
[1733099374825,0.0610518,97429.0,97428.0,0.30892]
[1733099375061,0.0540518,97429.0,97428.0,0.30792]
[1733099375291,0.1060518,97429.0,97428.0,0.31292]
[1733099375506,0.1120518,97429.0,97428.0,0.31392]
[1733099375723,0.1120518,97429.0,97428.0,0.30892]
[1733099375944,0.1120518,97429.0,97428.0,0.31092]
[1733099376207,0.10167663,97429.0,97428.0,0.30992]
[1733099376416,0.1060518,97429.0,97428.0,0.30792]
[1733099376625,0.10378091,97429.0,97428.0,0.31192]
[1733099377040,0.10378091,97429.0,97428.0,0.30992]
[1733099377256,0.10378091,97429.0,97428.0,0.31192]
[1733099377726,0.00538091,97429.0,97428.0,0.41276521]
[1733099377936,0.00765187,97429.0,97428.0,0.41276521]
[1733099378153,0.00765187,97429.0,97428.0,0.41376521]
[1733099378853,0.00538091,97429.0,97428.0,0.41376521]
[1733099379268,0.00100574,97429.0,97428.0,0.41376521]
[1733099379492,0.00538091,97429.0,97428.0,0.41376521]
[1733099381498,0.00765187,97429.0,97428.0,0.41376521]
[1733099382151,0.00765187,97429.0,97428.0,0.31092]
[1733099382636,0.05275187,97429.0,97428.0,0.31092]
[1733099383068,0.10475187,97429.0,97428.0,0.31092]
[1733099383506,0.10475187,97429.0,97428.0,0.30892]
[1733099384620,0.10475187,97429.0,97428.0,0.30792]
[1733099384844,0.10675187,97429.0,97428.0,0.30792]
[1733099385066,0.10475187,97429.0,97428.0,0.30792]
[1733099385290,0.10875187,97429.0,97428.0,0.30792]
[1733099385503,0.11075187,97429.0,97428.0,0.30792]
[1733099385713,0.10675187,97429.0,97428.0,0.30792]
[1733099385932,0.05475187,97429.0,97428.0,0.30792]
[1733099386142,0.05275187,97429.0,97428.0,0.30792]
[1733099386598,0.05675187,97429.0,97428.0,0.30792]
[1733099387712,0.05275187,97429.0,97428.0,0.30792]
[1733099388625,0.05675187,97429.0,97428.0,0.30792]
[1733099389713,0.05875187,97429.0,97428.0,0.30792]
[1733099390142,0.05675187,97429.0,97428.0,0.30792]
[1733099390380,0.05775187,97429.0,97428.0,0.30792]
[1733099390846,0.11975187,97429.0,97428.0,0.20528]
[1733099391083,0.12575187,97429.0,97428.0,0.15528]
[1733099391308,0.12975187,97429.0,97428.0,0.15528]
[1733099391519,0.18338116,97429.0,97428.0,0.15528]
[1733099391727,0.18338116,97429.0,97417.0,0.0017294]
[1733099391728,0.00437517,97418.0,97417.0,0.0017294]
[1733099391935,0.00664692,97418.0,97417.0,0.0017294]
[1733099392378,0.01664692,97418.0,97417.0,0.0017294]
[1733099393302,0.09050901,97418.0,97417.0,0.0017294]
[1733099393506,0.09050901,97418.0,97417.0,0.0027294]
[1733099393730,0.01664692,97418.0,97417.0,0.0027294]
[1733099394429,0.01664692,97418.0,97417.0,0.0047294]
[1733099394695,0.205302,97417.0,97415.0,5.954e-05]
[1733099394921,0.01664703,97416.0,97415.0,5.4e-07]
[1733099395142,0.11274703,97416.0,97415.0,5.4e-07]
[1733099396038,0.11574703,97416.0,97415.0,5.4e-07]
[1733099396488,0.11274703,97416.0,97415.0,5.4e-07]
[1733099396956,0.11574703,97416.0,97415.0,5.4e-07]
[1733099397453,0.12174703,97416.0,97415.0,5.4e-07]
[1733099397932,0.17598173,97416.0,97415.0,5.4e-07]
[1733099398146,0.01437517,97410.0,97409.0,1.4e-07]
[1733099398389,0.01664718,97410.0,97409.0,1.4e-07]
[1733099399477,0.01764718,97410.0,97409.0,1.4e-07]
[1733099400578,0.02064718,97410.0,97409.0,1.4e-07]
[1733099401323,0.11519912,97410.0,97409.0,1.4e-07]
[1733099401532,0.03064718,97410.0,97409.0,1.4e-07]
[1733099401769,0.13349239,97410.0,97409.0,1.4e-07]
[1733099402662,0.22959239,97410.0,97409.0,1.4e-07]
[1733099402874,0.22732038,97410.0,97409.0,1.4e-07]
[1733099403864,0.12122038,97410.0,97409.0,1.4e-07]
[1733099404098,0.00764723,97410.0,97409.0,1.4e-07]
[1733099404335,0.02564723,97410.0,97409.0,0.00100014]
[1733099404563,0.01564723,97410.0,97409.0,0.00100014]
[1733099405006,0.02564723,97410.0,97409.0,0.00100014]
[1733099405243,0.00664723,97410.0,97409.0,1.4e-07]
[1733099405448,0.01564723,97410.0,97409.0,0.00100014]
[1733099405664,0.02264723,97410.0,97409.0,0.00200014]
[1733099405885,0.02364723,97410.0,97409.0,0.00100014]
[1733099406386,0.29054986,97410.0,97409.0,1.4e-07]
[1733099406603,0.2922778,97410.0,97409.0,1.4e-07]
[1733099407077,0.20976417,97376.0,97370.0,0.047]
[1733099407301,0.00437517,97371.0,97370.0,0.04180243]
[1733099407733,0.00437517,97371.0,97370.0,0.00017867]
[1733099407951,0.00664756,97371.0,97370.0,0.00017867]
[1733099408383,0.00664756,97371.0,97370.0,0.00817867]
[1733099408851,0.00664756,97371.0,97370.0,0.00017867]
[1733099409069,0.00664756,97371.0,97370.0,0.00217867]
[1733099410038,0.00664756,97371.0,97370.0,0.00817867]
[1733099410471,0.02761815,97371.0,97370.0,0.00217867]
[1733099410917,0.02761815,97371.0,97370.0,0.00517867]
[1733099412205,0.02761815,97371.0,97370.0,0.00604337]
[1733099413774,0.00664756,97371.0,97370.0,0.00604337]
[1733099414507,0.00437517,97371.0,97370.0,0.00604337]
[1733099414760,0.00664776,97371.0,97370.0,0.00604337]
[1733099417696,0.06902974,97371.0,97370.0,0.00604337]
[1733099417980,0.00664776,97371.0,97370.0,0.00604337]
[1733099418463,0.01664776,97371.0,97370.0,3.7e-07]
[1733099418676,0.02664776,97371.0,97370.0,3.7e-07]
[1733099419095,0.04724036,97371.0,97370.0,3.7e-07]
[1733099419536,0.04924036,97371.0,97370.0,3.7e-07]
[1733099419977,0.05424036,97371.0,97370.0,0.00100037]
[1733099420396,0.04424036,97371.0,97370.0,3.7e-07]
[1733099420629,0.05924036,97371.0,97370.0,0.00100037]
[1733099420843,0.06224036,97371.0,97370.0,0.00100037]
[1733099421061,0.05224036,97371.0,97370.0,0.00100037]
[1733099421293,0.04224036,97371.0,97370.0,0.00100037]
[1733099421495,0.04224036,97371.0,97370.0,0.08420037]
[1733099421978,0.03924036,97371.0,97370.0,0.08420037]
[1733099422404,0.03621642,97371.0,97370.0,0.08420037]
[1733099422642,0.03848328,97371.0,97370.0,0.08420037]
[1733099422853,0.03548328,97371.0,97370.0,0.08420037]
[1733099423149,0.02348328,97371.0,97370.0,0.08320037]
[1733099423382,0.01464203,97371.0,97370.0,0.08320037]
[1733099424080,0.01637223,97371.0,97370.0,0.08320037]
[1733099424624,0.0097302,97371.0,97370.0,0.18604558]
[1733099424867,0.0348583,97371.0,97370.0,0.18604558]
[1733099425640,0.03048313,97371.0,97370.0,0.18604558]
[1733099426114,0.0097302,97371.0,97370.0,0.23464558]
[1733099426627,0.20538,97381.0,97371.0,0.1287]
[1733099426884,0.205362,97389.0,97378.0,0.1287]
[1733099427118,0.20973717,97389.0,97380.0,0.0825]
[1733099427384,0.205372,97384.0,97382.0,0.0825]
[1733099427608,0.20973717,97389.0,97383.0,0.10284521]
[1733099427841,0.20973717,97389.0,97384.0,0.0792]
[1733099428045,0.00537517,97389.0,97385.0,0.10284521]
[1733099428500,0.205364,97388.0,97386.0,0.0796]
[1733099428723,0.205364,97388.0,97387.0,0.14984521]
[1733099428956,0.205364,97388.0,97387.0,0.22714521]
[1733099429164,0.02058255,97392.0,97388.0,0.0773]
[1733099429376,0.02058255,97392.0,97389.0,0.10284521]
[1733099429652,0.205353,97394.0,97390.0,0.0775]
[1733099429851,0.02017656,97396.0,97391.0,0.10284521]
[1733099430086,0.205349,97395.0,97391.0,0.10284521]
[1733099430982,0.001,97394.0,97391.0,0.10284521]
[1733099431422,0.001,97394.0,97393.0,0.10284521]
[1733099431649,0.001,97394.0,97393.0,0.26167543]
[1733099432739,0.001,97395.0,97393.0,0.26667543]
[1733099432980,0.001,97395.0,97394.0,0.22706229]
[1733099433246,0.02037791,97409.0,97394.0,0.22706229]
[1733099433247,0.02037791,97409.0,97394.0,0.22524521]
[1733099433473,0.205299,97419.0,97401.0,0.1237]
[1733099433709,0.205299,97419.0,97407.0,0.1237]
[1733099433952,0.205296,97421.0,97409.0,0.0783]
[1733099434175,0.410576,97424.0,97411.0,0.0783]
[1733099434395,0.00437517,97426.0,97412.0,0.10466201]
[1733099434622,0.20965917,97426.0,97413.0,0.0783]
[1733099434843,0.205298,97420.0,97415.0,0.0765]
[1733099435058,0.205298,97420.0,97416.0,0.10284521]
[1733099435302,0.410596,97420.0,97416.0,0.10284521]
[1733099435540,0.205298,97420.0,97416.0,0.10284521]
[1733099436717,0.004,97419.0,97416.0,0.10284521]
[1733099436963,0.205298,97420.0,97416.0,0.10284521]
[1733099437200,0.205298,97420.0,97416.0,0.10684521]
[1733099437455,0.00437517,97417.0,97416.0,0.11284521]
[1733099437685,0.00437517,97417.0,97416.0,0.10684521]
[1733099437899,0.00437517,97417.0,97416.0,0.11284521]
[1733099438111,0.00437517,97417.0,97416.0,0.10684521]
[1733099438350,0.00437517,97417.0,97416.0,0.10284521]
[1733099438597,0.00437517,97417.0,97416.0,0.11284521]
[1733099439070,0.02474053,97417.0,97416.0,0.10884521]
[1733099439733,0.02474053,97417.0,97416.0,0.10584521]
[1733099440168,0.02474053,97417.0,97416.0,0.10984521]
[1733099440369,0.02474053,97417.0,97416.0,0.10284521]
[1733099440816,0.02474053,97417.0,97416.0,0.10684521]
[1733099441505,0.02474053,97417.0,97416.0,0.10984521]
[1733099441722,0.00437517,97417.0,97416.0,0.10984521]
[1733099442395,0.02039684,97419.0,97417.0,0.1266]
[1733099442628,0.20544394,97426.0,97418.0,0.10284521]
[1733099442842,0.20544394,97426.0,97419.0,0.0808]
[1733099442843,0.00015894,97426.0,97419.0,0.0808]
[1733099443068,0.00015894,97426.0,97425.0,0.17824521]
[1733099443306,0.00015894,97426.0,97425.0,0.22666164]
[1733099443568,0.00015894,97426.0,97425.0,0.22484521]
[1733099444510,0.00015894,97426.0,97425.0,0.23384521]
[1733099444511,0.00115894,97426.0,97425.0,0.23384521]
[1733099444983,0.00015894,97426.0,97425.0,0.22484521]
[1733099445680,0.00015894,97426.0,97425.0,0.23084521]
[1733099446132,0.00015894,97426.0,97425.0,0.22484521]
[1733099446356,0.00115894,97426.0,97425.0,0.23884521]
[1733099446575,0.00015894,97426.0,97425.0,0.22984521]
[1733099447023,0.00115894,97426.0,97425.0,0.23884521]
[1733099448049,0.00288914,97426.0,97425.0,0.23884521]
[1733099448972,0.00217265,97426.0,97425.0,0.23884521]
[1733099452614,0.02250338,97426.0,97425.0,0.23884521]
[1733099452847,0.02206093,97426.0,97425.0,0.22484521]
[1733099453061,0.02306093,97426.0,97425.0,0.23284521]
[1733099453304,0.02306093,97426.0,97425.0,0.18624521]
[1733099453778,0.0027302,97426.0,97425.0,0.18624521]
[1733099454434,0.0017302,97426.0,97425.0,0.17824521]
[1733099454676,0.0027302,97426.0,97425.0,0.19024521]
[1733099455200,0.0027302,97426.0,97425.0,0.18624521]
[1733099455437,0.0027302,97426.0,97425.0,0.19124521]
[1733099455894,0.0017302,97426.0,97425.0,0.18324521]
[1733099456106,0.0027302,97426.0,97425.0,0.19224521]
[1733099459703,0.41056,97428.0,97425.0,0.19224521]
[1733099459916,0.20528,97428.0,97426.0,0.0465]
[1733099460205,0.20528,97428.0,97427.0,0.10284521]
[1733099461256,0.2070112,97428.0,97427.0,0.10284521]
[1733099462113,0.2070112,97428.0,97427.0,0.10684521]
[1733099462608,0.2080112,97428.0,97427.0,0.10684521]
[1733099462796,0.2070112,97428.0,97427.0,0.10684521]
[1733099463319,0.2070112,97428.0,97427.0,0.11484521]
[1733099464913,0.2070112,97428.0,97427.0,0.012]
[1733099464914,0.21365323,97428.0,97427.0,0.012]
[1733099465400,0.21138637,97428.0,97427.0,0.012]
[1733099466058,0.2070112,97428.0,97427.0,0.11484521]
[1733099466271,0.2070112,97428.0,97427.0,0.23134521]
[1733099466504,0.2070112,97428.0,97427.0,0.23234521]
[1733099467375,0.0017312,97428.0,97427.0,0.23234521]
[1733099467574,0.2070102,97428.0,97427.0,0.26036912]
[1733099468118,0.0017312,97428.0,97427.0,0.26136912]
[1733099468358,0.0017312,97428.0,97427.0,0.26036912]
[1733099468799,0.0017312,97428.0,97427.0,0.26136912]
[1733099472443,0.0008653,97450.0,97428.0,0.27940383]
[1733099472660,0.205238,97448.0,97428.0,0.49687295]
[1733099473088,0.02117664,97450.0,97428.0,0.49687295]
[1733099473297,0.205238,97448.0,97428.0,0.49687295]
[1733099473732,0.02117664,97450.0,97428.0,0.49687295]
[1733099474438,0.02117664,97450.0,97428.0,0.50687295]
[1733099475067,0.0007593,97429.0,97428.0,0.50687295]
[1733099475280,0.0117593,97429.0,97428.0,0.50887295]
[1733099475714,0.0057593,97429.0,97428.0,0.50787295]
[1733099475977,0.0067593,97429.0,97428.0,0.50787295]
[1733099476222,0.0067593,97429.0,97428.0,0.50687295]
[1733099476703,0.0127593,97429.0,97428.0,0.81579295]
[1733099476946,0.0127593,97429.0,97428.0,0.80579295]
[1733099477167,0.0187593,97429.0,97428.0,0.81679295]
[1733099477640,0.0127593,97429.0,97428.0,0.81579295]
[1733099477897,0.0127593,97429.0,97428.0,0.61051395]
[1733099478145,0.0187593,97429.0,97428.0,0.61151395]
[1733099482068,0.0187593,97429.0,97428.0,0.60151395]
[1733099482351,0.0187593,97429.0,97428.0,0.61151395]
[1733099482834,0.0187593,97429.0,97428.0,0.60151395]
[1733099484772,0.0187593,97429.0,97428.0,0.60237925]
[1733099485266,0.0008653,97450.0,97447.0,0.0477]
[1733099485516,0.0008653,97450.0,97448.0,0.30989822]
[1733099485755,0.0008653,97450.0,97448.0,0.44267157]
[1733099486660,0.0072,97449.0,97448.0,0.44367157]
[1733099489512,0.0062,97449.0,97448.0,0.44367157]
[1733099490368,0.0062,97449.0,97448.0,0.41170521]
[1733099491753,0.0062,97449.0,97448.0,0.49170521]
[1733099491978,0.0008653,97450.0,97448.0,0.57124974]
[1733099492186,0.0008653,97450.0,97449.0,0.13660575]
[1733099492610,0.0008653,97450.0,97449.0,0.44445575]
[1733099492816,0.0008653,97450.0,97449.0,0.44263974]
[1733099493478,0.0008653,97450.0,97449.0,0.45163974]
[1733099494109,0.0018653,97450.0,97449.0,0.45919274]
[1733099494313,0.0018653,97450.0,97449.0,0.58529274]
[1733099494552,0.0018653,97450.0,97449.0,0.59091757]
[1733099494764,0.0018653,97450.0,97449.0,0.42724821]
[1733099495861,0.0018653,97450.0,97449.0,0.41824821]
[1733099496068,0.00624047,97450.0,97449.0,0.41824821]
[1733099496312,0.00624047,97450.0,97449.0,0.42724821]
[1733099496562,0.00624047,97450.0,97449.0,0.41824821]
[1733099496766,0.00624047,97450.0,97449.0,0.42724821]
[1733099496994,0.00524047,97450.0,97449.0,0.41824821]
[1733099497227,0.00524047,97450.0,97449.0,0.40924821]
[1733099497905,0.00524047,97450.0,97449.0,0.41524821]
[1733099498549,0.00524047,97450.0,97449.0,0.40924821]
[1733099498784,0.00524047,97450.0,97449.0,0.41824821]
[1733099499007,0.00524047,97450.0,97449.0,0.40924821]
[1733099499232,0.00524047,97450.0,97449.0,0.41824821]
[1733099499928,0.00524047,97450.0,97449.0,0.42324821]
[1733099500163,0.00524047,97450.0,97449.0,0.41424821]
[1733099500373,0.00524047,97450.0,97449.0,0.41724821]
[1733099500816,0.00524047,97450.0,97449.0,0.42224821]
[1733099501288,0.00524047,97450.0,97449.0,0.41724821]
[1733099501529,0.00524047,97450.0,97449.0,0.42124821]
[1733099501991,0.00524047,97450.0,97449.0,0.31185]
[1733099502232,0.00524047,97450.0,97449.0,0.32085]
[1733099502463,0.00524047,97450.0,97449.0,0.41469521]
[1733099502679,0.0008653,97450.0,97449.0,0.41469521]
[1733099502920,0.0008653,97450.0,97449.0,0.42269521]
[1733099503125,0.0008653,97450.0,97449.0,0.41469521]
[1733099503363,0.0008653,97450.0,97449.0,0.41069521]
[1733099503576,0.0008653,97450.0,97449.0,0.41869521]
[1733099503790,0.0008653,97450.0,97449.0,0.45469913]
[1733099504020,0.0008653,97450.0,97449.0,0.57729913]
[1733099504258,0.0008653,97450.0,97449.0,0.57329913]
[1733099504466,0.0008653,97450.0,97449.0,0.57829913]
[1733099504934,0.2060983,97450.0,97449.0,0.57029913]
[1733099505156,0.0008653,97450.0,97449.0,0.56529913]
[1733099505378,0.0008653,97450.0,97449.0,0.57929913]
[1733099505586,0.0008653,97450.0,97449.0,0.57029913]
[1733099506134,0.0008653,97450.0,97449.0,0.57929913]
[1733099506214,0.0008653,97450.0,97449.0,0.57029913]
[1733099506428,0.0008653,97450.0,97449.0,0.57429913]
[1733099506851,0.0008653,97450.0,97449.0,0.57129913]
[1733099507283,0.0008653,97450.0,97449.0,0.56529913]
[1733099507722,0.0018653,97450.0,97449.0,0.57229913]
[1733099507939,0.0009305,97450.0,97449.0,0.57229913]
[1733099508160,0.0008654,97452.0,97450.0,0.0814]
[1733099508376,0.0008654,97452.0,97451.0,0.13666512]
[1733099508596,0.0008654,97452.0,97451.0,0.44451512]
[1733099508831,0.0008654,97452.0,97451.0,0.44269913]
[1733099509281,0.0008654,97452.0,97451.0,0.52409913]
[1733099509966,0.0008654,97452.0,97451.0,0.53309913]
[1733099510846,0.0018654,97452.0,97451.0,0.54109913]
[1733099511306,0.0018654,97452.0,97451.0,0.53209913]
[1733099511541,0.0018654,97452.0,97451.0,0.54109913]
[1733099511758,0.0018654,97452.0,97451.0,0.57749913]
[1733099512201,0.0018654,97452.0,97451.0,0.58612396]
[1733099512202,0.0038654,97452.0,97451.0,0.58612396]
[1733099512473,0.0038654,97452.0,97451.0,0.90812396]
[1733099512474,0.0008654,97452.0,97451.0,0.90812396]
[1733099512894,0.0038654,97452.0,97451.0,0.90912396]
[1733099513103,0.0019306,97489.0,97468.0,0.205195]
[1733099513341,0.0019306,97489.0,97468.0,1.43098442]
[1733099513563,0.0019306,97489.0,97480.0,0.20517]
[1733099513828,0.0019306,97489.0,97480.0,0.46883446]
[1733099514064,0.0019306,97489.0,97480.0,0.77477913]
[1733099514280,0.00232642,97481.0,97480.0,0.77477913]
[1733099514514,0.0019306,97489.0,97488.0,0.205153]
[1733099514732,0.0019306,97489.0,97488.0,0.34181741]
[1733099514733,0.00210923,97489.0,97488.0,0.34181741]
[1733099514972,0.00210923,97489.0,97488.0,0.64773213]
[1733099515420,0.00210923,97489.0,97488.0,0.44257913]
[1733099515660,0.00510923,97489.0,97488.0,0.44357913]
[1733099516088,0.00510923,97489.0,97488.0,0.41157521]
[1733099516771,0.01010923,97489.0,97488.0,0.41157521]
[1733099517023,0.00710923,97489.0,97488.0,0.41057521]
[1733099517250,0.00210923,97489.0,97488.0,0.41057521]
[1733099518126,0.00310923,97489.0,97488.0,0.41957521]
[1733099518365,0.00310923,97489.0,97488.0,0.42857521]
[1733099518576,0.00310923,97489.0,97488.0,0.5965941]
[1733099518793,0.0148193,97499.0,97494.0,0.00562483]
[1733099519011,0.0148193,97499.0,97498.0,0.10284521]
[1733099519227,0.0148193,97499.0,97498.0,0.13655433]
[1733099519437,0.0148193,97499.0,97498.0,0.44425433]
[1733099519649,0.0148193,97499.0,97498.0,0.41054521]
[1733099519874,0.0148193,97499.0,97498.0,0.54237004]
[1733099520117,0.0178193,97499.0,97498.0,0.57423681]
[1733099520780,0.0248193,97499.0,97498.0,0.57523681]
[1733099521213,0.0218193,97499.0,97498.0,0.58523681]
[1733099521734,0.0248193,97499.0,97498.0,0.58623681]
[1733099523046,0.0178193,97499.0,97498.0,0.58523681]
[1733099523509,0.0228193,97499.0,97498.0,0.58623681]
[1733099523979,0.0178193,97499.0,97498.0,0.58523681]
[1733099524432,0.0002,97509.0,97498.0,0.58523681]
[1733099524433,0.0002,97509.0,97508.0,0.21073583]
[1733099524645,0.0002,97509.0,97508.0,0.92499574]
[1733099524856,0.0002,97509.0,97508.0,1.23085104]
[1733099525611,0.0002,97509.0,97508.0,1.24085104]
[1733099525820,0.0032,97509.0,97508.0,1.24185104]
[1733099526044,0.0032,97509.0,97508.0,1.24085104]
[1733099526255,0.0032,97509.0,97508.0,1.03574004]
[1733099526490,0.0062,97509.0,97508.0,1.02111521]
[1733099526714,0.0062,97509.0,97508.0,0.97811521]
[1733099526924,0.00173,97527.0,97517.0,0.205091]
[1733099527171,0.00173,97527.0,97526.0,0.10284521]
[1733099527630,0.00173,97527.0,97526.0,0.41045521]
[1733099527847,0.00173,97527.0,97526.0,0.53915521]
[1733099528392,0.0019085,97527.0,97526.0,0.53915521]
[1733099529091,0.0019085,97527.0,97526.0,0.54015521]
[1733099529576,0.0059085,97527.0,97526.0,0.53915521]
[1733099530294,0.0019085,97527.0,97526.0,0.53915521]
[1733099530543,0.0069085,97527.0,97526.0,0.54015521]